bitfinex-derivatives/quotes_SOLF0:USTF0_20260207
["timestamp","ask_amount","ask_price","bid_price","bid_amount"]
[1770506036899,3.90894614,87.344,87.3,7.63319189]
[1770506037208,3.90894614,87.342,87.301,3.8178372]
[1770506038003,3.90894614,87.34,87.29,3.81535469]
[1770506038207,3.90894614,87.338,87.29,3.81535469]
[1770506039920,3.90894614,87.338,87.291,3.8178372]
[1770506040317,3.90894614,87.338,87.3,3.81535469]
[1770506040820,3.90894614,87.338,87.229,20.6493]
[1770506040821,3.90894614,87.354,87.32,3.81535469]
[1770506042018,3.90894614,87.354,87.254,20.6432]
[1770506042019,3.90894614,87.379,87.331,3.8178372]
[1770506042218,8.24156428,87.378,87.341,3.8178372]
[1770506042417,3.90894614,87.379,87.341,3.8178372]
[1770506042822,3.90894614,87.391,87.35,3.81535469]
[1770506043421,3.90894614,87.405,87.37,3.81535469]
[1770506043624,3.90894614,87.424,87.38,3.81535469]
[1770506043923,3.90894614,87.424,87.373,3.8178372]
[1770506043924,3.90894614,87.438,87.39,3.81535469]
[1770506044122,12.14976363,87.437,87.39,3.81535469]
[1770506044323,3.81535469,87.45,87.295,21.3410939]
[1770506044324,3.90894614,87.436,87.4,3.81535469]
[1770506045421,3.90894614,87.436,87.391,3.8178372]
[1770506048425,3.66086461,87.46,87.391,3.8178372]
[1770506048928,3.66086461,87.46,87.393,3.93644038]
[1770506049816,3.66086461,87.46,87.401,3.93644038]
[1770506053526,3.66086461,87.46,87.404,3.81543099]
[1770506057535,3.66086461,87.46,87.409,3.81543099]
[1770506059733,3.66086461,87.46,87.38,9.51630743]
[1770506059734,3.80329839,87.454,87.387,3.81543099]
[1770506060426,3.80329839,87.454,87.399,3.81543099]
[1770506064529,3.80329839,87.454,87.401,3.81543099]
[1770506064934,3.80329839,87.448,87.361,3.81543099]
[1770506065340,9.51630743,87.5,87.31,3.81543099]
[1770506065341,3.80329839,87.426,87.31,3.81543099]
[1770506065529,3.80329839,87.426,87.341,3.81543099]
[1770506066736,3.80329839,87.426,87.355,3.81543099]
[1770506067438,3.80329839,87.426,87.34,9.51630743]
[1770506067439,3.80329839,87.426,87.371,3.81543099]
[1770506070634,3.80329839,87.426,87.309,320.5785]
[1770506070635,3.80329839,87.426,87.381,3.81543099]
[1770506070835,3.80329839,87.449,87.401,3.81543099]
[1770506072445,3.80329839,87.469,87.411,3.81543099]
[1770506077652,3.80329839,87.469,87.42,7.4280114]
[1770506077855,3.80329839,87.469,87.421,3.61932283]
[1770506082651,14.09969839,87.469,87.421,3.61932283]
[1770506083049,10.2968,87.465,87.421,3.61932283]
[1770506084254,8.28976978,87.464,87.421,3.61932283]
[1770506084454,8.28976978,87.463,87.421,3.61932283]
[1770506084654,10.2968,87.465,87.421,3.61932283]
[1770506084958,10.2974,87.46,87.421,3.61932283]
[1770506085661,3.80329839,87.469,87.421,3.61932283]
[1770506085855,11.89597668,87.468,87.421,3.61932283]
[1770506086062,3.605852,87.468,87.431,3.61932283]
[1770506086257,3.605852,87.489,87.441,3.61932283]
[1770506086463,8.30163868,87.488,87.441,3.61932283]
[1770506086760,8.30163868,87.487,87.441,3.61932283]
[1770506086961,3.605852,87.489,87.441,3.61932283]
[1770506087162,11.91503793,87.488,87.441,3.61932283]
[1770506087463,11.91503793,87.487,87.441,3.61932283]
[1770506087661,8.30918593,87.486,87.441,3.61932283]
[1770506087961,8.30918593,87.485,87.441,3.61932283]
[1770506088157,8.30918593,87.484,87.441,3.61932283]
[1770506088362,8.30918593,87.483,87.441,3.61932283]
[1770506088564,8.30918593,87.482,87.441,3.61932283]
[1770506088758,8.30918593,87.481,87.441,3.61932283]
[1770506089056,3.605852,87.479,87.441,3.61932283]
[1770506089262,3.605852,87.479,87.421,3.61932283]
[1770506089463,3.605852,87.477,87.421,3.61932283]
[1770506089761,3.605852,87.459,87.406,3.61932283]
[1770506089960,3.605852,87.449,87.406,3.61932283]
[1770506090363,3.605852,87.459,87.406,3.61932283]
[1770506090563,3.605852,87.457,87.406,3.61932283]
[1770506090764,11.91817732,87.456,87.406,3.61932283]
[1770506090962,8.31232532,87.455,87.406,3.61932283]
[1770506091161,8.31232532,87.454,87.406,3.61932283]
[1770506091364,8.31232532,87.453,87.406,3.61932283]
[1770506091564,8.31232532,87.452,87.406,3.61932283]
[1770506091762,8.31232532,87.451,87.406,3.61932283]
[1770506091964,3.605852,87.456,87.406,3.61932283]
[1770506092165,11.91815881,87.455,87.406,3.61932283]
[1770506092462,8.31230681,87.454,87.406,3.61932283]
[1770506092662,8.31230681,87.453,87.406,3.61932283]
[1770506092861,8.31230681,87.452,87.406,3.61932283]
[1770506093173,8.31230681,87.451,87.406,3.61932283]
[1770506093358,3.605852,87.455,87.406,3.61932283]
[1770506093563,8.31315083,87.454,87.406,3.61932283]
[1770506093763,8.31315083,87.453,87.406,3.61932283]
[1770506093968,8.31315083,87.452,87.406,3.61932283]
[1770506094167,3.605852,87.455,87.406,3.61932283]
[1770506094363,11.91864845,87.454,87.406,3.61932283]
[1770506094558,8.31279645,87.453,87.406,3.61932283]
[1770506094757,8.31279645,87.452,87.406,3.61932283]
[1770506094965,3.605852,87.454,87.406,3.61932283]
[1770506095165,8.3124227,87.453,87.406,3.61932283]
[1770506095464,8.3124227,87.452,87.406,3.61932283]
[1770506095666,3.605852,87.454,87.406,3.61932283]
[1770506095862,8.31278878,87.453,87.406,3.61932283]
[1770506096064,3.605852,87.454,87.406,3.61932283]
[1770506096366,8.31281481,87.453,87.406,3.61932283]
[1770506096568,3.605852,87.454,87.406,3.61932283]
[1770506096764,8.30901861,87.453,87.406,3.61932283]
[1770506096965,3.605852,87.454,87.406,3.61932283]
[1770506097775,3.605852,87.454,87.335,160.4112]
[1770506097776,3.605852,87.469,87.411,3.61932283]
[1770506097964,3.605852,87.467,87.411,3.61932283]
[1770506098165,3.605852,87.465,87.411,3.61932283]
[1770506098564,3.605852,87.465,87.42,3.8045443]
[1770506098866,3.605852,87.465,87.42,7.42386713]
[1770506099772,8.30674988,87.464,87.42,7.42386713]
[1770506099959,3.605852,87.465,87.42,7.42386713]
[1770506100366,3.605852,87.465,87.423,3.61932283]
[1770506100774,3.605852,87.479,87.431,3.61932283]
[1770506100969,8.30520783,87.478,87.432,3.61932283]
[1770506101167,8.30520783,87.477,87.432,3.61932283]
[1770506101365,8.30520783,87.476,87.432,3.61932283]
[1770506101563,3.605852,87.478,87.432,3.61932283]
[1770506101776,3.605852,87.476,87.432,3.61932283]
[1770506102075,3.605852,87.474,87.432,3.61932283]
[1770506102281,3.605852,87.472,87.432,3.61932283]
[1770506102475,3.605852,87.472,87.436,3.61932283]
[1770506105470,3.605852,87.489,87.441,3.61932283]
[1770506105773,3.8045443,87.49,87.441,3.61932283]
[1770506105774,3.58550671,87.487,87.441,3.61932283]
[1770506105969,3.58550671,87.485,87.441,3.61932283]
[1770506106170,8.29527038,87.484,87.441,3.61932283]
[1770506106367,3.58550671,87.485,87.441,3.61932283]
[1770506107878,10.2919,87.507,87.429,3.83202472]
[1770506107879,3.58550671,87.479,87.429,3.83202472]
[1770506108682,3.58550671,87.479,87.431,3.83202472]
[1770506111574,3.58550671,87.479,87.441,3.83202472]
[1770506114279,8.31378649,87.478,87.441,3.83202472]
[1770506114484,3.58550671,87.479,87.441,3.83202472]
[1770506114779,3.75936225,87.477,87.43,3.8045443]
[1770506114985,3.75936225,87.477,87.429,3.65387779]
[1770506114986,3.75936225,87.469,87.429,3.65387779]
[1770506115187,8.31228877,87.468,87.429,3.65387779]
[1770506115382,8.31228877,87.467,87.429,3.65387779]
[1770506115684,8.31228877,87.466,87.429,3.65387779]
[1770506115887,8.31228877,87.465,87.429,3.65387779]
[1770506116087,7.56390655,87.46,87.404,3.65387779]
[1770506116382,8.31228877,87.459,87.404,3.65387779]
[1770506116583,7.56390655,87.46,87.404,3.65387779]
[1770506116584,8.31228877,87.458,87.404,3.65387779]
[1770506116783,8.31228877,87.457,87.404,3.65387779]
[1770506116976,8.31228877,87.456,87.404,3.65387779]
[1770506117183,3.8045443,87.45,87.404,3.65387779]
[1770506117379,8.31228877,87.449,87.404,3.65387779]
[1770506117584,8.31228877,87.448,87.404,3.65387779]
[1770506117886,3.8045443,87.45,87.404,3.65387779]
[1770506118078,8.32358626,87.449,87.404,3.65387779]
[1770506118275,12.08294851,87.448,87.404,3.65387779]
[1770506118476,3.75936225,87.448,87.404,3.65387779]
[1770506119076,14.05866225,87.444,87.404,3.65387779]
[1770506119688,10.2982,87.454,87.404,3.65387779]
[1770506119989,8.32313207,87.453,87.404,3.65387779]
[1770506120188,8.32313207,87.452,87.404,3.65387779]
[1770506120487,8.32313207,87.451,87.404,3.65387779]
[1770506120689,10.2982,87.454,87.404,3.65387779]
[1770506120876,3.75936225,87.457,87.411,3.65387779]
[1770506121076,10.2967,87.466,87.411,3.65387779]
[1770506121291,8.32406949,87.465,87.411,3.65387779]
[1770506121492,8.32406949,87.464,87.411,3.65387779]
[1770506121690,8.32406949,87.463,87.411,3.65387779]
[1770506121891,8.32406949,87.462,87.411,3.65387779]
[1770506122093,8.32406949,87.461,87.411,3.65387779]
[1770506122288,8.32406949,87.46,87.411,3.65387779]
[1770506122490,8.32406949,87.459,87.411,3.65387779]
[1770506122687,8.32406949,87.458,87.411,3.65387779]
[1770506122889,8.32406949,87.457,87.411,3.65387779]
[1770506123089,8.32406949,87.457,87.41,3.8045443]
[1770506123090,3.75936225,87.469,87.413,3.65387779]
[1770506123388,8.31491204,87.468,87.413,3.65387779]
[1770506123589,8.31491204,87.467,87.413,3.65387779]
[1770506123890,8.31491204,87.466,87.413,3.65387779]
[1770506124096,8.31491204,87.465,87.413,3.65387779]
[1770506124291,8.31491204,87.464,87.413,3.65387779]
[1770506124486,8.31491204,87.463,87.413,3.65387779]
[1770506124790,8.31491204,87.462,87.415,3.65387779]
[1770506124989,3.75936225,87.46,87.403,3.65387779]
[1770506125191,3.75936225,87.444,87.403,3.65387779]
[1770506125591,3.75936225,87.459,87.411,3.65387779]
[1770506126190,3.75936225,87.457,87.411,3.65387779]
[1770506126391,3.75936225,87.455,87.411,3.65387779]
[1770506126690,3.75936225,87.453,87.411,3.65387779]
[1770506127093,3.8045443,87.44,87.392,3.65387779]
[1770506127285,3.75936225,87.449,87.392,3.65387779]
[1770506127594,3.75936225,87.447,87.392,3.65387779]
[1770506127797,3.75936225,87.445,87.392,3.65387779]
[1770506127987,3.75936225,87.443,87.392,3.65387779]
[1770506128292,3.8045443,87.44,87.392,3.65387779]
[1770506128484,3.75936225,87.438,87.392,3.65387779]
[1770506128683,3.8045443,87.43,87.392,3.65387779]
[1770506128888,3.75936225,87.429,87.373,3.65387779]
[1770506129296,3.75936225,87.429,87.381,3.65387779]
[1770506130789,3.75936225,87.429,87.384,3.65387779]
[1770506131188,3.75936225,87.441,87.401,3.65387779]
[1770506134197,3.75936225,87.441,87.406,3.65387779]
[1770506134398,3.75936225,87.459,87.411,3.65387779]
[1770506134597,8.31931092,87.458,87.411,3.65387779]
[1770506134903,8.31931092,87.457,87.411,3.65387779]
[1770506135093,8.31931092,87.456,87.411,3.65387779]
[1770506135400,8.31931092,87.455,87.411,3.65387779]
[1770506135701,3.75936225,87.458,87.411,3.65387779]
[1770506135995,3.75936225,87.458,87.353,34.37]
[1770506135996,3.64269039,87.471,87.421,3.90605821]
[1770506136193,3.64269039,87.469,87.421,3.90605821]
[1770506136500,3.64269039,87.459,87.421,3.90605821]
[1770506142502,3.64269039,87.459,87.41,7.71060251]
[1770506142707,10.41951743,87.487,87.41,7.71060251]
[1770506142708,3.64269039,87.457,87.41,3.90605821]
[1770506143915,3.64269039,87.457,87.42,7.71060251]
[1770506144903,3.64269039,87.457,87.42,3.90605821]
[1770506145104,3.64269039,87.457,87.405,10.3038]
[1770506145105,3.64269039,87.457,87.405,3.90605821]
[1770506145406,3.8045443,87.46,87.405,3.90605821]
[1770506145407,3.64269039,87.455,87.405,3.90605821]
[1770506145606,3.64269039,87.453,87.405,3.90605821]
[1770506145809,3.64269039,87.449,87.405,3.90605821]
[1770506146010,3.64269039,87.447,87.405,3.90605821]
[1770506151415,8.33142066,87.446,87.405,3.90605821]
[1770506151611,3.64269039,87.447,87.405,3.90605821]
[1770506151811,8.33142066,87.446,87.405,3.90605821]
[1770506152012,3.64269039,87.447,87.405,3.90605821]
[1770506152208,8.33142035,87.446,87.405,3.90605821]
[1770506152412,3.64269039,87.447,87.405,3.90605821]
[1770506152611,8.33293879,87.446,87.405,3.90605821]
[1770506152811,3.64269039,87.447,87.405,3.90605821]
[1770506153015,8.33293794,87.446,87.405,3.90605821]
[1770506153214,3.64269039,87.447,87.405,3.90605821]
[1770506153413,3.80636749,87.44,87.382,3.90605821]
[1770506153614,3.64269039,87.438,87.382,3.90605821]
[1770506153911,3.64269039,87.436,87.391,3.90605821]
[1770506154115,8.33387088,87.435,87.391,3.90605821]
[1770506154312,8.33387088,87.434,87.391,3.90605821]
[1770506154513,3.64269039,87.436,87.391,3.90605821]
[1770506154712,8.33226136,87.435,87.401,3.90605821]
[1770506154913,3.64269039,87.448,87.41,3.80636749]
[1770506155112,8.33190048,87.447,87.41,3.80636749]
[1770506155312,8.33190048,87.446,87.41,3.80636749]
[1770506155513,8.33190048,87.445,87.41,3.80636749]
[1770506155713,8.33190048,87.444,87.41,3.80636749]
[1770506155915,3.64269039,87.448,87.41,3.80636749]
[1770506156114,11.97448979,87.447,87.41,3.80636749]
[1770506156417,3.64269039,87.447,87.401,3.90605821]
[1770506158412,8.33588001,87.446,87.401,3.90605821]
[1770506158610,3.64269039,87.447,87.401,3.90605821]
[1770506158810,8.33588001,87.446,87.401,3.90605821]
[1770506159012,3.64269039,87.447,87.401,3.90605821]
[1770506159213,8.33587831,87.446,87.401,3.90605821]
[1770506159410,8.33587831,87.445,87.401,3.90605821]
[1770506159613,3.64269039,87.447,87.401,3.90605821]
[1770506159811,8.3380094,87.446,87.401,3.90605821]
[1770506160010,8.3380094,87.445,87.401,3.90605821]
[1770506160213,3.64269039,87.447,87.41,3.80636749]
[1770506160416,3.64269039,87.469,87.43,3.80636749]
[1770506160718,3.64269039,87.469,87.421,3.90605821]
[1770506161817,3.64269039,87.469,87.422,3.90605821]
[1770506170831,3.64269039,87.469,87.369,34.37]
[1770506170832,3.64269039,87.469,87.431,3.80886643]
[1770506171036,13.90773446,87.502,87.368,20.6164]
[1770506171037,3.8915358,87.499,87.451,3.80886643]
[1770506172327,3.87854036,87.497,87.451,3.80886643]
[1770506172527,3.87854036,87.495,87.451,3.80886643]
[1770506172836,3.87854036,87.493,87.46,3.80636749]
[1770506174030,3.87854036,87.506,87.47,3.80636749]
[1770506174747,14.16834036,87.524,87.49,3.80636749]
[1770506174937,14.16834036,87.524,87.481,3.66897537]
[1770506174938,8.28594159,87.523,87.481,3.66897537]
[1770506175239,3.87854036,87.524,87.49,3.80636749]
[1770506176232,3.87854036,87.539,87.5,3.80636749]
[1770506176439,12.14492598,87.538,87.5,3.80636749]
[1770506176638,8.26638562,87.537,87.5,3.80636749]
[1770506176835,8.26638562,87.536,87.5,3.80636749]
[1770506177033,3.87854036,87.538,87.501,3.66897537]
[1770506177233,3.87854036,87.538,87.51,3.80636749]
[1770506177438,3.87854036,87.538,87.501,3.66897537]
[1770506180243,3.87854036,87.519,87.473,13.96477537]
[1770506180546,3.87854036,87.519,87.473,3.66897537]
[1770506182944,3.87854036,87.519,87.408,160.2764]
[1770506182945,3.87854036,87.509,87.461,3.66897537]
[1770506185546,3.87854036,87.499,87.451,3.66897537]
[1770506187752,3.87854036,87.499,87.39,20.6111]
[1770506187753,3.87854036,87.479,87.435,3.66897537]
[1770506189147,3.87854036,87.469,87.423,3.66897537]
[1770506189348,3.80636749,87.45,87.41,3.66897537]
[1770506189751,3.87854036,87.439,87.391,3.66897537]
[1770506190141,3.80636749,87.42,87.371,3.66897537]
[1770506190345,3.87854036,87.419,87.371,3.66897537]
[1770506190743,3.87854036,87.433,87.381,3.66897537]
[1770506190946,3.87854036,87.419,87.367,3.66897537]
[1770506191341,3.87854036,87.419,87.37,3.80636749]
[1770506192556,3.87854036,87.419,87.367,3.66897537]
[1770506192946,3.87854036,87.409,87.353,3.66897537]
[1770506193153,3.80636749,87.4,87.353,3.66897537]
[1770506194356,3.87854036,87.409,87.36,3.80636749]
[1770506194659,3.87854036,87.409,87.353,3.66897537]
[1770506195450,3.87854036,87.389,87.328,3.66897537]
[1770506195847,9.52976645,87.43,87.268,34.37]
[1770506195848,3.92007112,87.404,87.331,3.7355771]
[1770506197661,3.92007112,87.404,87.337,3.7355771]
[1770506197960,8.19377203,87.45,87.351,3.7355771]
[1770506197961,3.92007112,87.42,87.351,3.7355771]
[1770506199368,10.3008,87.432,87.328,1.99130805]
[1770506199369,10.3008,87.432,87.371,3.7355771]
[1770506200462,3.92007112,87.454,87.391,3.7355771]
[1770506201167,3.92007112,87.452,87.391,3.7355771]
[1770506201563,3.92007112,87.444,87.391,3.7355771]
[1770506202463,3.92007112,87.437,87.391,3.7355771]
[1770506204871,3.92007112,87.45,87.391,3.7355771]
[1770506206966,3.92007112,87.45,87.393,3.7355771]
[1770506210565,3.92007112,87.438,87.366,3.7355771]
[1770506211772,3.92007112,87.435,87.366,3.7355771]
[1770506213268,3.92007112,87.431,87.366,3.7355771]
[1770506214267,3.92007112,87.429,87.366,3.7355771]
[1770506217369,3.92007112,87.429,87.38,7.5432289]
[1770506218069,3.92007112,87.427,87.38,7.5432289]
[1770506218374,3.92007112,87.427,87.328,36.36130805]
[1770506218375,3.92007112,87.427,87.37,3.8076518]
[1770506218773,3.92007112,87.427,87.37,7.5432289]
[1770506219073,3.92007112,87.427,87.371,3.7355771]
[1770506219276,3.92007112,87.425,87.38,3.8076518]
[1770506219471,3.92007112,87.425,87.38,7.5432289]
[1770506219876,3.92007112,87.425,87.38,3.7355771]
[1770506220177,3.92007112,87.425,87.38,7.5432289]
[1770506220380,3.92007112,87.419,87.361,3.7355771]
[1770506221673,10.3023,87.418,87.37,3.8076518]
[1770506221878,3.92007112,87.417,87.37,3.8076518]
[1770506222078,3.92007112,87.417,87.361,3.7355771]
[1770506222274,3.92007112,87.413,87.361,3.7355771]
[1770506222475,160.1577,87.474,87.361,3.7355771]
[1770506222476,3.92007112,87.409,87.361,3.7355771]
[1770506223680,10.3037,87.407,87.361,3.7355771]
[1770506223881,3.92007112,87.406,87.361,3.7355771]
[1770506224770,3.92007112,87.406,87.328,1.99130805]
[1770506224771,3.92007112,87.406,87.347,3.7355771]
[1770506224972,3.92007112,87.399,87.347,3.7355771]
[1770506225171,3.92007112,87.411,87.37,3.8076518]
[1770506225581,3.92007112,87.411,87.38,3.8076518]
[1770506225782,3.79117367,87.439,87.38,3.8076518]
[1770506226376,3.79117367,87.437,87.38,3.8076518]
[1770506226579,3.79117367,87.435,87.38,3.8076518]
[1770506226876,10.41951743,87.468,87.371,3.64860524]
[1770506226877,3.79117367,87.425,87.371,3.64860524]
[1770506227981,14.09317367,87.421,87.38,3.8076518]
[1770506228875,3.79117367,87.42,87.38,3.8076518]
[1770506229877,3.79117367,87.42,87.381,3.64860524]
[1770506233596,10.3023,87.419,87.381,3.64860524]
[1770506235085,10.301,87.43,87.39,3.8076518]
[1770506235286,10.301,87.43,87.391,3.58603819]
[1770506235783,10.301,87.43,87.4,3.8076518]
[1770506236380,10.301,87.43,87.357,10.3094]
[1770506236381,3.72410234,87.456,87.41,7.39368999]
[1770506236587,3.72410234,87.456,87.42,7.39368999]
[1770506236786,3.72410234,87.468,87.43,3.8076518]
[1770506237688,10.297,87.463,87.43,3.8076518]
[1770506238887,3.72410234,87.495,87.45,3.8076518]
[1770506239090,13.90773446,87.539,87.441,3.58603819]
[1770506239091,3.72410234,87.489,87.441,3.58603819]
[1770506240782,10.2951,87.479,87.441,3.58603819]
[1770506241584,3.72410234,87.477,87.43,3.8076518]
[1770506241784,3.72410234,87.477,87.42,3.8076518]
[1770506242794,3.72410234,87.469,87.41,3.8076518]
[1770506243894,3.72410234,87.466,87.41,3.8076518]
[1770506244990,3.72410234,87.459,87.4,3.8076518]
[1770506245486,442.13854848,87.506,87.393,3.58603819]
[1770506245487,3.72410234,87.449,87.393,3.58603819]
[1770506246288,3.8076518,87.44,87.393,3.58603819]
[1770506246489,3.72410234,87.439,87.393,3.58603819]
[1770506246989,3.72410234,87.438,87.393,3.58603819]
[1770506247294,3.72410234,87.429,87.38,7.39368999]
[1770506247591,3.72410234,87.429,87.38,3.58603819]
[1770506248396,3.72410234,87.429,87.381,3.58603819]
[1770506248695,10.3012,87.428,87.381,3.58603819]
[1770506250386,14.02590234,87.423,87.381,3.58603819]
[1770506251397,10.3018,87.423,87.391,3.58603819]
[1770506251593,10.3018,87.423,87.381,3.58603819]
[1770506253397,10.3031,87.412,87.381,3.819e-05]
[1770506253696,10.3031,87.412,87.36,3.8076518]
[1770506254098,3.72410234,87.403,87.36,3.8076518]
[1770506254597,3.72410234,87.403,87.313,12.30609038]
[1770506254795,3.72410234,87.399,87.34,3.8076518]
[1770506255395,3.72410234,87.399,87.341,3.58603819]
[1770506255601,3.8076518,87.4,87.341,3.58603819]
[1770506255602,3.56811145,87.395,87.341,3.58603819]
[1770506255798,3.56811145,87.408,87.351,3.61533974]
[1770506255997,3.56811145,87.399,87.34,7.42299154]
[1770506256197,3.56811145,87.399,87.341,3.61533974]
[1770506256496,3.56811145,87.399,87.35,3.8076518]
[1770506257697,3.56811145,87.398,87.341,3.61533974]
[1770506258104,3.56811145,87.398,87.35,3.8076518]
[1770506259496,3.56811145,87.379,87.33,3.8076518]
[1770506263000,3.56811145,87.376,87.327,3.61533974]
[1770506264103,3.56811145,87.369,87.312,3.61533974]
[1770506265004,13.87791145,87.355,87.312,3.61533974]
[1770506265401,3.56811145,87.369,87.321,3.61533974]
[1770506266502,3.56811145,87.365,87.321,3.61533974]
[1770506266902,3.56811145,87.365,87.33,3.8076518]
[1770506267602,3.56811145,87.365,87.321,3.61533974]
[1770506268911,3.56811145,87.389,87.34,3.8076518]
[1770506269296,3.56811145,87.389,87.283,34.35]
[1770506269297,3.56811145,87.375,87.32,3.8076518]
[1770506269501,3.56811145,87.375,87.32,3.81302763]
[1770506269910,3.56811145,87.375,87.33,3.81302763]
[1770506270306,10.3083,87.368,87.33,7.42836737]
[1770506271219,3.56811145,87.375,87.34,3.81302763]
[1770506273511,10.3075,87.374,87.34,3.81302763]
[1770506274110,10.3084,87.367,87.34,2.763e-05]
[1770506274317,10.3084,87.367,87.33,7.42836737]
[1770506274713,10.3084,87.367,87.331,3.61533974]
[1770506275311,10.3096,87.357,87.33,6.737e-05]
[1770506275513,10.3096,87.357,87.34,2.763e-05]
[1770506275714,3.56811145,87.373,87.34,2.763e-05]
[1770506276518,10.3096,87.357,87.32,3.81302763]
[1770506277314,10.3096,87.357,87.321,0.08600999]
[1770506277716,10.3096,87.357,87.33,2.763e-05]
[1770506280109,10.3096,87.357,87.321,0.08600999]
[1770506280514,10.3096,87.357,87.33,2.763e-05]
[1770506281424,3.56811145,87.373,87.32,3.762e-05]
[1770506282021,3.95555609,87.37,87.32,3.762e-05]
[1770506284821,3.94710464,87.382,87.35,3.81302763]
[1770506285222,3.95297012,87.409,87.35,3.81302763]
[1770506285428,3.95297012,87.401,87.36,3.81302763]
[1770506285922,3.95297012,87.401,87.35,3.81302763]
[1770506286127,3.95296032,87.399,87.35,3.81302763]
[1770506287221,3.95296032,87.399,87.33,10.3126]
[1770506287222,3.95296032,87.399,87.36,3.81302763]
[1770506289224,3.95582617,87.397,87.323,10.3135]
[1770506289429,3.95582617,87.389,87.33,3.81302763]
[1770506289623,3.95582617,87.389,87.34,3.81302763]
[1770506289816,160.1942,87.454,87.285,34.35]
[1770506289817,3.95582617,87.402,87.35,3.81302763]
[1770506290018,3.95582617,87.402,87.272,21.2920785]
[1770506290019,3.95582617,87.402,87.36,3.81302763]
[1770506292917,3.96091872,87.389,87.33,3.81302763]
[1770506293130,3.95850271,87.387,87.33,3.81302763]
[1770506293418,3.95850271,87.387,87.265,20.6408]
[1770506293419,3.95850271,87.379,87.32,3.81302763]
[1770506294120,3.95850271,87.375,87.311,10.3149]
[1770506294327,3.95850271,87.369,87.311,10.3149]
[1770506294525,3.95850271,87.359,87.301,10.316]
[1770506295126,3.95850271,87.359,87.302,0.02647121]
[1770506296822,3.93316133,87.349,87.3,3.81302763]
[1770506297628,3.94406277,87.339,87.291,0.02647121]
[1770506300226,3.95602221,87.353,87.3,3.81302763]
[1770506300425,3.95602221,87.353,87.264,1.99281898]
[1770506300426,3.95602221,87.353,87.31,3.81302763]
[1770506301032,3.95602221,87.353,87.32,3.81302763]
[1770506302834,3.96075529,87.367,87.33,3.81302763]
[1770506303537,3.96075529,87.367,87.31,9.52947266]
[1770506303731,3.96075529,87.367,87.321,10.3137]
[1770506307831,3.95738213,87.381,87.33,9.52947266]
[1770506308738,3.95738213,87.381,87.337,10.3118]
[1770506311138,3.95738213,87.381,87.327,10.313]
[1770506311334,3.95738213,87.381,87.31,9.52947266]
[1770506312533,3.95738213,87.381,87.241,188.5517249]
[1770506312534,3.95738213,87.381,87.29,9.52947266]
[1770506312735,3.96032699,87.379,87.29,9.52947266]
[1770506312938,9.52947266,87.39,87.242,20.6461]
[1770506312939,3.96032699,87.377,87.27,9.52947266]
[1770506313144,3.95376212,87.375,87.27,9.52947266]
[1770506313334,3.95376212,87.373,87.27,9.52947266]
[1770506313534,3.95376212,87.371,87.27,9.52947266]
[1770506313736,10.398146,87.389,87.294,10.3169]
[1770506313737,3.95376212,87.359,87.294,10.3169]
[1770506314837,3.95376212,87.356,87.294,10.3169]
[1770506316440,3.96172251,87.354,87.294,10.3169]
[1770506317339,3.9455885,87.351,87.282,10.3182]
[1770506318840,3.9455885,87.344,87.282,10.3182]
[1770506320037,3.9432205,87.339,87.282,10.3182]
[1770506321143,3.9432205,87.339,87.293,10.317]
[1770506321442,3.9432205,87.339,87.27,9.52947266]
[1770506322844,3.9432205,87.339,87.282,10.3184]
[1770506323139,3.9432205,87.339,87.27,9.52947266]
[1770506323446,3.9432205,87.339,87.28,3.81612299]
[1770506324535,3.9432205,87.339,87.29,3.81612299]
[1770506324743,3.94742116,87.334,87.29,3.81612299]
[1770506325741,3.94742116,87.332,87.29,3.81612299]
[1770506326948,3.94742116,87.332,87.216,34.35]
[1770506326949,3.9425847,87.328,87.28,3.81612299]
[1770506327539,3.9425847,87.312,87.27,3.81612299]
[1770506329450,3.9425847,87.312,87.27,3.8174828]
[1770506329747,3.94085765,87.31,87.27,3.8174828]
[1770506331953,3.93272809,87.307,87.27,3.8174828]
[1770506333349,3.93835355,87.32,87.29,3.8174828]
[1770506335963,3.93835355,87.32,87.27,3.8174828]
[1770506336255,3.92642708,87.319,87.27,3.8174828]
[1770506337862,3.92642708,87.318,87.27,3.8174828]
[1770506339667,3.9445647,87.316,87.27,3.8174828]
[1770506341268,3.93691208,87.312,87.27,3.8174828]
[1770506342265,3.93830112,87.31,87.26,3.8174828]
[1770506342470,3.93830112,87.31,87.197,34.35]
[1770506342471,3.93830112,87.309,87.25,3.8174828]
[1770506342770,3.93830112,87.309,87.26,3.8174828]
[1770506343167,3.93830112,87.297,87.26,3.8174828]
[1770506344172,3.95922261,87.295,87.26,3.8174828]
[1770506344374,3.95922261,87.295,87.254,0.02613367]
[1770506344964,10.3182,87.284,87.25,3.8174828]
[1770506345163,10.3182,87.284,87.24,3.8174828]
[1770506346270,3.94179428,87.274,87.23,3.8174828]
[1770506346461,3.94179428,87.269,87.22,3.8174828]
[1770506347778,3.94179428,87.262,87.22,3.8174828]